[Event "DVM U14w 2019"]
[Site "Neumuenster"]
[Date "2019.12.28"]
[Round "4"]
[White "Mai, Mariella"]
[Black "Müller, Helene"]
[Result "1-0"]
[ECO "A02"]
[WhiteElo "1232"]
[BlackElo "1545"]
[Annotator "NA"]
[PlyCount "63"]
[EventDate "2019.12.27"]
[EventType "team-tourn"]
[EventRounds "7"]
[EventCountry "GER"]
[SourceTitle "playchess.com"]
[Source "ChessBase"]
[SourceQuality "1"]
[WhiteTeam "SV Traktor Priestewitz"]
[BlackTeam "SC Borussia Lichtenberg"]
[TimeControl "40/5400+30:1800+30"]

1. f4 {[%emt 0:00:00]} c5 {[%emt 0:00:00]} 2. e4 {[%emt 0:00:00]} d6 {[%emt 0:00:00]} 3. Nf3 {[%emt 0:00:00]} Nc6 {[%emt 0:00:14]} 4. Nc3 {[%emt 0:00:13]} Nf6 {[%emt 0:00:30]} 5. d4 {[%emt 0:00:46]} cxd4 {[%emt 0:00:07]} 6. Nxd4 {[%emt 0:00:08]} g6 {[%emt 0:00:16]} 7. Nxc6 {[%emt 0:00:26]} bxc6 {[%emt 0:00:08]} 8. e5 {[%emt 0:00:15]} dxe5 {[%emt 0:00:30]} 9. Qxd8+ {[%emt 0:00:16]} Kxd8 {[%emt 0:00:05]} 10. fxe5 {[%emt 0:00:19]} Ng4 {[%emt 0:00:31]} 11. Bf4 {[%emt 0:00:26]} Bg7 {[%emt 0:00:24]} 12. O-O-O+ {[%emt 0:00:19]} Ke8 {[%emt 0:00:31]} 13. Re1 {[%emt 0:00:19]} Be6 {[%emt 0:20:50]} 14. h3 {[%emt 0:00:26]} Nh6 {[%emt 0:00:15]} 15. Bd3 {[%emt 0:01:17]} Nf5 {[%emt 0:03:54]} 16. Be4 {[%emt 0:01:38]} Rc8 {[%emt 0:02:06]} 17. g4 {[%emt 0:02:03]} Nd4 {[%emt 0:04:05]} 18. Rd1 {[%emt 0:01:09]} c5 {[%emt 0:01:00]} 19. Rd2 {[%emt 0:05:36]} f6 {[%emt 0:06:16]} 20. exf6 {[%emt 0:01:35]} exf6 {[%emt 0:00:15]} 21. b3 {[%emt 0:01:22]} Kf7 {[%emt 0:03:15]} 22. Na4 {[%emt 0:00:50]} Nb5 {[%emt 0:09:38]} 23. Bb7 {[%emt 0:00:41]} Rcd8 {[%emt 0:01:01]} 24. Nxc5 {[%emt 0:00:53]} a5 {[%emt 0:17:15]} 25. Nxe6 {[%emt 0:00:44]} Kxe6 {[%emt 0:00:11]} 26. Re1+ {[%emt 0:00:37]} Kf7 {[%emt 0:00:43]} 27. Rde2 {[%emt 0:01:27]} Nd4 {[%emt 0:19:52]} 28. Bd5+ {[%emt 0:00:25]} Rxd5 {[%emt 0:08:38]} 29. Re7+ {[%emt 0:00:11]} Kg8 {[%emt 0:00:08]} 30. Re8+ {[%emt 0:00:07]} Bf8 {[%emt 0:00:05]} 31. Bh6 {[%emt 0:00:16]} Ne6 {[%emt 0:02:11]} 32. R1xe6 {[%emt 0:00:48] normal} 1-0

[Event "DVM U14w 2019"]
[Site "Neumuenster"]
[Date "2019.12.28"]
[Round "4"]
[White "Halas, Neele Zoe"]
[Black "Voigt, Anastasia"]
[Result "0-1"]
[ECO "C45"]
[WhiteElo "1076"]
[BlackElo "1511"]
[Annotator "NA"]
[PlyCount "144"]
[EventDate "2019.12.27"]
[EventType "team-tourn"]
[EventRounds "7"]
[EventCountry "GER"]
[SourceTitle "playchess.com"]
[Source "ChessBase"]
[SourceQuality "1"]
[WhiteTeam "SG Leipzig"]
[BlackTeam "USV Halle"]
[BlackTeamCountry "GER"]
[TimeControl "40/5400+30:1800+30"]

1. e4 {[%emt 0:00:00]} e5 {[%emt 0:00:00]} 2. Nf3 {[%emt 0:00:00]} Nc6 {[%emt 0:00:00]} 3. d4 {[%emt 0:00:00]} exd4 {[%emt 0:00:00]} 4. Nxd4 {[%emt 0:00:00]} Nf6 {[%emt 0:00:05]} 5. Nxc6 {[%emt 0:00:00]} bxc6 {[%emt 0:00:04]} 6. e5 {[%emt 0:00:03]} Qe7 {[%emt 0:00:16]} 7. Qe2 {[%emt 0:00:05]} Nd5 {[%emt 0:00:11]} 8. c4 {[%emt 0:00:09]} Ba6 {[%emt 0:00:04]} 9. b3 {[%emt 0:00:07]} g6 {[%emt 0:00:40]} 10. Ba3 {[%emt 0:00:08]} c5 {[%emt 0:04:16]} 11. Qe4 {[%emt 0:11:48]} Nb6 {[%emt 0:01:56]} 12. Bd3 {[%emt 0:09:05]} Bg7 {[%emt 0:04:46]} 13. Bb2 {[%emt 0:06:18]} O-O {[%emt 0:03:15]} 14. O-O {[%emt 0:01:43]} Rfe8 {[%emt 0:04:58]} 15. Re1 {[%emt 0:03:34]} d6 {[%emt 0:03:42]} 16. f4 {[%emt 0:02:32]} Rab8 {[%emt 0:05:58]} 17. Nd2 {[%emt 0:08:47]} Bb7 {[%emt 0:00:58]} 18. Qe3 {[%emt 0:04:44]} dxe5 {[%emt 0:01:41]} 19. fxe5 {[%emt 0:03:18]} Nd7 {[%emt 0:01:50]} 20. Qg3 {[%emt 0:04:53]} Bxe5 {[%emt 0:04:22]} 21. Bxe5 {[%emt 0:01:58]} Nxe5 {[%emt 0:02:08]} 22. Bc2 {[%emt 0:01:34]} Qd6 {[%emt 0:01:03]} 23. Nf1 {[%emt 0:04:21]} Nc6 {[%emt 0:04:35]} 24. Rad1 {[%emt 0:05:21]} Nd4 {[%emt 0:00:51]} 25. Rxe8+ {[%emt 0:01:28]} Rxe8 {[%emt 0:00:56]} 26. Qxd6 {[%emt 0:02:40]} cxd6 {[%emt 0:00:10]} 27. Bd3 {[%emt 0:06:15]} Kf8 {[%emt 0:02:03]} 28. Ng3 {[%emt 0:03:10]} a5 {[%emt 0:01:38]} 29. Kf2 {[%emt 0:00:34]} Re6 {[%emt 0:00:59]} 30. Ne2 {[%emt 0:01:23]} Nxe2 {[%emt 0:02:23]} 31. Bxe2 {[%emt 0:00:07]} Bxg2 {[%emt 0:00:04]} 32. Kxg2 {[%emt 0:02:07]} Rxe2+ {[%emt 0:00:08]} 33. Kg3 {[%emt 0:00:52]} Ke7 {[%emt 0:00:26]} 34. Ra1 {[%emt 0:00:38]} Rc2 {[%emt 0:02:16]} 35. Re1+ {[%emt 0:00:14]} Kd7 {[%emt 0:00:15]} 36. Ra1 {[%emt 0:00:12]} a4 {[%emt 0:00:20]} 37. Kh3 {[%emt 0:01:47]} a3 {[%emt 0:02:24]} 38. Kg3 {[%emt 0:00:22]} f5 {[%emt 0:00:29]} 39. h4 {[%emt 0:01:16]} h6 {[%emt 0:01:13]} 40. Kf4 {[%emt 0:00:24]} Re2 {[%emt 0:00:25]} 41. Kf3 {[%emt 0:30:31]} Re4 {[%emt 0:31:22]} 42. Kg3 {[%emt 0:00:11]} Ke6 {[%emt 0:02:47]} 43. Rf1 {[%emt 0:00:30]} Ke5 {[%emt 0:00:30]} 44. h5 {[%emt 0:00:54]} g5 {[%emt 0:00:12]} 45. Rd1 {[%emt 0:00:46]} Rd4 {[%emt 0:01:43]} 46. Re1+ {[%emt 0:00:13]} Kf6 {[%emt 0:00:17]} 47. Re2 {[%emt 0:00:52]} Kf7 {[%emt 0:01:06]} 48. Rf2 {[%emt 0:00:21]} Rg4+ {[%emt 0:01:05]} 49. Kh3 {[%emt 0:00:13]} Rh4+ {[%emt 0:00:11]} 50. Kg3 {[%emt 0:00:15]} f4+ {[%emt 0:00:05]} 51. Kg2 {[%emt 0:00:15]} Rxh5 {[%emt 0:00:15]} 52. Rf3 {[%emt 0:00:10]} Rh4 {[%emt 0:00:32]} 53. Kg1 {[%emt 0:00:27]} Rg4+ {[%emt 0:00:15]} 54. Kf2 {[%emt 0:00:29]} Rg3 {[%emt 0:01:16]} 55. Rxg3 {[%emt 0:00:09]} fxg3+ {[%emt 0:00:07]} 56. Kxg3 {[%emt 0:00:06]} Kf6 {[%emt 0:00:14]} 57. Kg2 {[%emt 0:00:19]} Ke5 {[%emt 0:00:06]} 58. Kg3 {[%emt 0:00:14]} Kd4 {[%emt 0:00:06]} 59. Kg4 {[%emt 0:00:11]} Kc3 {[%emt 0:00:06]} 60. Kh5 {[%emt 0:00:08]} Kb2 {[%emt 0:00:05]} 61. Kg4 {[%emt 0:00:14]} Kxa2 {[%emt 0:00:07]} 62. Kh5 {[%emt 0:00:08]} Kxb3 {[%emt 0:00:23]} 63. Kg4 {[%emt 0:00:08]} a2 {[%emt 0:00:06]} 64. Kh5 {[%emt 0:00:09]} a1=Q {[%emt 0:00:11]} 65. Kg4 {[%emt 0:00:22]} Qf6 {[%emt 0:00:22]} 66. Kh5 {[%emt 0:00:12]} Qf4 {[%emt 0:00:46]} 67. Kg6 {[%emt 0:00:03]} g4 {[%emt 0:00:08]} 68. Kg7 {[%emt 0:00:05]} g3 {[%emt 0:00:10]} 69. Kg6 {[%emt 0:00:07]} g2 {[%emt 0:00:03]} 70. Kg7 {[%emt 0:00:08]} g1=R+ {[%emt 0:00:13]} 71. Kh7 {[%emt 0:00:07]} Qf7+ {[%emt 0:00:17]} 72. Kh8 {[%emt 0:00:07]} Qg7# {normal} 0-1

[Event "DVM U14w 2019"]
[Site "Neumuenster"]
[Date "2019.12.28"]
[Round "4"]
[White "Gietzelt, Magdalena"]
[Black "Muhina, Alina"]
[Result "1-0"]
[ECO "B13"]
[WhiteElo "841"]
[BlackElo "1228"]
[Annotator "NA"]
[PlyCount "91"]
[EventDate "2019.12.27"]
[EventType "team-tourn"]
[EventRounds "7"]
[EventCountry "GER"]
[SourceTitle "playchess.com"]
[Source "ChessBase"]
[SourceQuality "1"]
[WhiteTeam "Karlsruher SF"]
[BlackTeam "SC Garching"]
[TimeControl "40/5400+30:1800+30"]

1. e4 {[%emt 0:00:00]} c6 {[%emt 0:00:00]} 2. d4 {[%emt 0:00:00]} d5 {[%emt 0:00:00]} 3. exd5 {[%emt 0:00:03]} cxd5 {[%emt 0:00:00]} 4. Nf3 {[%emt 0:00:17]} Nc6 {[%emt 0:00:00]} 5. Bd3 {[%emt 0:00:15]} Qc7 {[%emt 0:00:24]} 6. c3 {[%emt 0:06:49]} Bg4 {[%emt 0:00:15]} 7. O-O {[%emt 0:03:55]} Nf6 {[%emt 0:00:18]} 8. Qe2 {[%emt 0:05:47]} e6 {[%emt 0:01:25]} 9. Be3 {[%emt 0:04:52]} Ne4 {[%emt 0:01:33]} 10. Nbd2 {[%emt 0:02:51]} Nxd2 {[%emt 0:02:34]} 11. Bxd2 {[%emt 0:00:57]} Bd6 {[%emt 0:00:11]} 12. g3 {[%emt 0:02:10]} Bh3 {[%emt 0:01:30]} 13. Rfe1 {[%emt 0:00:54]} O-O-O {[%emt 0:01:23]} 14. Ng5 {[%emt 0:01:22]} Bf5 {[%emt 0:04:18]} 15. Qf3 {[%emt 0:05:20]} Bxd3 {[%emt 0:03:36]} 16. Nxf7 {[%emt 0:00:33]} Rhf8 {[%emt 0:00:39]} 17. Nxd6+ {[%emt 0:00:51]} Qxd6 {[%emt 0:00:29]} 18. Qxd3 {[%emt 0:00:24]} h6 {[%emt 0:01:37]} 19. Bf4 {[%emt 0:00:38]} Qe7 {[%emt 0:01:44]} 20. Re2 {[%emt 0:04:02]} g5 {[%emt 0:00:37]} 21. Be5 {[%emt 0:01:49]} Nxe5 {[%emt 0:01:24]} 22. Rxe5 {[%emt 0:00:35]} Qf7 {[%emt 0:00:59]} 23. Rf1 {[%emt 0:01:16]} Rd6 {[%emt 0:02:53]} 24. Qb5 {[%emt 0:01:01]} Qd7 {[%emt 0:07:09]} 25. Qb4 {[%emt 0:07:36]} Qc7 {[%emt 0:02:20]} 26. Rxe6 {[%emt 0:00:31]} Rfd8 {[%emt 0:10:20]} 27. Rfe1 {[%emt 0:02:06]} Kb8 {[%emt 0:07:24]} 28. Rxd6 {[%emt 0:00:36]} Qxd6 {[%emt 0:00:41]} 29. Qxd6+ {[%emt 0:00:39]} Rxd6 {[%emt 0:00:06]} 30. Re8+ {[%emt 0:00:06]} Kc7 {[%emt 0:00:10]} 31. Re7+ {[%emt 0:00:07]} Kb6 {[%emt 0:00:09]} 32. Kf1 {[%emt 0:00:40]} a5 {[%emt 0:00:27]} 33. a4 {[%emt 0:00:31]} Ka6 {[%emt 0:00:09]} 34. Ke2 {[%emt 0:00:22]} b5 {[%emt 0:00:42]} 35. b3 {[%emt 0:00:34]} bxa4 {[%emt 0:01:56]} 36. bxa4 {[%emt 0:00:10]} Kb6 {[%emt 0:01:13]} 37. f4 {[%emt 0:00:30]} gxf4 {[%emt 0:01:05]} 38. gxf4 Rf6 39. Kf3 {[%emt 0:03:33]} h5 {[%emt 0:00:40]} 40. Re5 {[%emt 0:01:03]} Rc6 {[%emt 0:06:28]} 41. f5 {[%emt 0:30:11]} Rxc3+ {[%emt 0:30:11]} 42. Re3 {[%emt 0:00:22]} Rc1 {[%emt 0:00:13]} 43. Kf4 {[%emt 0:00:19]} Rf1+ {[%emt 0:03:05]} 44. Kg5 {[%emt 0:00:08]} Kc6 {[%emt 0:00:10]} 45. f6 {[%emt 0:00:19]} Kd7 {[%emt 0:00:51]} 46. Kg6 {[%emt 0:00:10] normal} 1-0

[Event "DVM U14w 2019"]
[Site "Neumuenster"]
[Date "2019.12.28"]
[Round "4"]
[White "Boutayeb, Malak"]
[Black "Popovidou, Laura"]
[Result "0-1"]
[ECO "C50"]
[WhiteElo "800"]
[BlackElo "931"]
[Annotator "NA"]
[PlyCount "28"]
[EventDate "2019.12.27"]
[EventType "team-tourn"]
[EventRounds "7"]
[EventCountry "GER"]
[SourceTitle "playchess.com"]
[Source "ChessBase"]
[SourceQuality "1"]
[WhiteTeam "VSG 1880 Offenbach"]
[BlackTeam "SG Porz"]
[TimeControl "40/5400+30:1800+30"]

1. e4 {[%emt 0:00:00]} e5 {[%emt 0:00:00]} 2. Nf3 {[%emt 0:00:00]} Nc6 {[%emt 0:00:00]} 3. Bc4 {[%emt 0:00:00]} Bc5 {[%emt 0:00:00]} 4. Nc3 {[%emt 0:00:18]} Nf6 {[%emt 0:03:32]} 5. d3 {[%emt 0:00:20]} h6 {[%emt 0:00:21]} 6. h3 {[%emt 0:02:42]} d6 {[%emt 0:02:10]} 7. O-O {[%emt 0:04:48]} O-O {[%emt 0:02:35]} 8. Nh4 {[%emt 0:01:10]} Ng4 {[%emt 0:16:47]} 9. hxg4 {[%emt 0:03:25]} Qxh4 {[%emt 0:00:20]} 10. Be3 Bxg4 {[%emt 0:02:43]} 11. f3 {[%emt 0:06:10]} Bxe3+ {[%emt 0:00:12]} 12. Rf2 {[%emt 0:01:59]} Bxf2+ {[%emt 0:01:06]} 13. Kf1 {[%emt 0:01:53]} Be3 {[%emt 0:03:09]} 14. Ke2 {[%emt 0:01:00] normal} Qf2# {[%emt 0:00:29] normal} 0-1

[Event "DVM U14w 2019"]
[Site "Neumuenster"]
[Date "2019.12.29"]
[Round "5"]
[White "Zhou, Lepu Coco"]
[Black "Ramien, Hannah"]
[Result "1-0"]
[ECO "C26"]
[WhiteElo "1892"]
[BlackElo "1439"]
[Annotator "NA"]
[PlyCount "71"]
[EventDate "2019.12.27"]
[EventType "team-tourn"]
[EventRounds "7"]
[EventCountry "GER"]
[SourceTitle "playchess.com"]
[Source "ChessBase"]
[SourceQuality "1"]
[WhiteTeam "USV Halle"]
[BlackTeam "SG Porz"]
[WhiteTeamCountry "GER"]
[BlackTeamCountry "GER"]
[TimeControl "40/5400+30:1800+30"]

1. e4 {[%emt 0:00:00]} e5 {[%emt 0:00:00]} 2. Nc3 {[%emt 0:00:00]} Nf6 {[%emt 0:00:29]} 3. f4 {[%emt 0:00:07]} exf4 {[%emt 0:04:32]} 4. e5 {[%emt 0:00:05]} Ng8 {[%emt 0:02:36]} 5. Nf3 {[%emt 0:00:07]} d6 {[%emt 0:02:32]} 6. Qe2 {[%emt 0:02:56]} dxe5 {[%emt 0:07:05]} 7. Qxe5+ {[%emt 0:00:10]} Qe7 {[%emt 0:00:09]} 8. Nd5 {[%emt 0:00:32]} Qxe5+ {[%emt 0:01:25]} 9. Nxe5 {[%emt 0:00:08]} Bd6 {[%emt 0:00:26]} 10. Nc4 {[%emt 0:00:09]} Kd8 {[%emt 0:20:25]} 11. Nxd6 {[%emt 0:00:30]} cxd6 12. d4 {[%emt 0:01:13]} Nc6 {[%emt 0:01:14]} 13. c3 {[%emt 0:01:34]} g5 {[%emt 0:02:00]} 14. g3 {[%emt 0:00:29]} Be6 {[%emt 0:02:45]} 15. Bg2 {[%emt 0:00:38]} Bxd5 {[%emt 0:08:29]} 16. Bxd5 {[%emt 0:00:05]} fxg3 {[%emt 0:00:32]} 17. Bxf7 {[%emt 0:00:12]} Ke7 {[%emt 0:10:51]} 18. Bd5 {[%emt 0:01:24]} Re8 {[%emt 0:06:17]} 19. hxg3 {[%emt 0:00:18]} g4 {[%emt 0:06:23]} 20. Bg5+ {[%emt 0:00:51]} Nf6 {[%emt 0:00:54]} 21. O-O-O {[%emt 0:00:24]} Ref8 {[%emt 0:02:21]} 22. Rhf1 {[%emt 0:00:20]} Kd7 {[%emt 0:04:06]} 23. Bxf6 {[%emt 0:00:28]} Rhg8 {[%emt 0:01:02]} 24. Bxg8 {[%emt 0:00:09]} Rxg8 {[%emt 0:00:11]} 25. Bh4 {[%emt 0:00:11]} Rg7 {[%emt 0:04:17]} 26. Rf8 {[%emt 0:00:32]} Kc7 {[%emt 0:00:32]} 27. d5 {[%emt 0:00:35]} Ne7 {[%emt 0:00:42]} 28. Bxe7 {[%emt 0:00:31]} Rxe7 {[%emt 0:00:08]} 29. Rd4 {[%emt 0:00:17]} b5 {[%emt 0:01:30]} 30. a4 {[%emt 0:00:19]} a6 {[%emt 0:00:26]} 31. axb5 {[%emt 0:00:11]} axb5 {[%emt 0:00:07]} 32. Rb4 {[%emt 0:00:09]} Kb6 {[%emt 0:04:02]} 33. Rb8+ {[%emt 0:00:06]} Ka7 {[%emt 0:00:26]} 34. R8xb5 {[%emt 0:00:14]} Ka6 {[%emt 0:00:23]} 35. c4 {[%emt 0:00:16]} Ka7 {[%emt 0:00:07]} 36. Ra4# {[%emt 0:00:05] normal} 1-0

[Event "DVM U14w 2019"]
[Site "Neumuenster"]
[Date "2019.12.29"]
[Round "5"]
[White "Werner, Rosalie"]
[Black "Glowiak, Alexandra"]
[Result "1-0"]
[ECO "C54"]
[WhiteElo "1674"]
[BlackElo "1403"]
[Annotator "NA"]
[PlyCount "97"]
[EventDate "2019.12.27"]
[EventType "team-tourn"]
[EventRounds "7"]
[EventCountry "GER"]
[SourceTitle "playchess.com"]
[Source "ChessBase"]
[SourceQuality "1"]
[WhiteTeam "VSG 1880 Offenbach"]
[BlackTeam "SV Traktor Priestewitz"]
[WhiteTeamCountry "GER"]
[TimeControl "40/5400+30:1800+30"]

1. e4 {[%emt 0:00:00]} e5 {[%emt 0:00:00]} 2. Nf3 {[%emt 0:00:00]} Nc6 {[%emt 0:00:00]} 3. Bc4 {[%emt 0:00:00]} Bc5 {[%emt 0:00:00]} 4. c3 {[%emt 0:00:00]} Nf6 {[%emt 0:00:22]} 5. d4 {[%emt 0:00:00]} exd4 {[%emt 0:00:06]} 6. e5 {[%emt 0:00:00]} Ng4 {[%emt 0:12:25]} 7. cxd4 {[%emt 0:01:38]} Bb4+ {[%emt 0:01:03]} 8. Nc3 {[%emt 0:01:01]} d5 {[%emt 0:02:33]} 9. Bb5 {[%emt 0:02:37]} Bf5 {[%emt 0:05:43]} 10. O-O {[%emt 0:06:13]} Qd7 {[%emt 0:03:38]} 11. Qb3 {[%emt 0:03:30]} Bxc3 {[%emt 0:02:16]} 12. Qxc3 {[%emt 0:02:28]} O-O {[%emt 0:04:02]} 13. h3 {[%emt 0:05:42]} Nh6 {[%emt 0:02:42]} 14. Bxh6 {[%emt 0:02:17]} gxh6 {[%emt 0:00:16]} 15. Rac1 {[%emt 0:00:15]} Rab8 {[%emt 0:01:41]} 16. b3 {[%emt 0:13:18]} Rfc8 {[%emt 0:06:29]} 17. Bxc6 {[%emt 0:00:23]} bxc6 {[%emt 0:00:13]} 18. Qxc6 {[%emt 0:00:10]} Qxc6 {[%emt 0:00:05]} 19. Rxc6 {[%emt 0:00:06]} Rb6 {[%emt 0:00:53]} 20. Rfc1 {[%emt 0:00:26]} Rxc6 {[%emt 0:00:38]} 21. Rxc6 {[%emt 0:00:17]} Be6 {[%emt 0:00:50]} 22. Ne1 {[%emt 0:00:47]} Kf8 {[%emt 0:04:12]} 23. g4 {[%emt 0:03:01]} h5 {[%emt 0:01:54]} 24. f3 {[%emt 0:02:05]} hxg4 {[%emt 0:02:46]} 25. hxg4 {[%emt 0:01:07]} Ke7 {[%emt 0:01:10]} 26. Nd3 {[%emt 0:00:40]} Kd7 {[%emt 0:09:48]} 27. Ra6 {[%emt 0:00:15]} Ra8 {[%emt 0:00:29]} 28. Nb4 {[%emt 0:06:48]} Rb8 {[%emt 0:04:01]} 29. Nd3 {[%emt 0:01:24]} Ra8 {[%emt 0:00:54]} 30. Nc5+ {[%emt 0:04:17]} Ke7 {[%emt 0:01:18]} 31. Rc6 {[%emt 0:01:51]} Rc8 {[%emt 0:00:22]} 32. Kg2 {[%emt 0:01:19]} Bd7 {[%emt 0:02:53]} 33. Rf6 {[%emt 0:06:30]} Be6 {[%emt 0:01:31]} 34. Kg3 {[%emt 0:01:44]} Rg8 {[%emt 0:01:31]} 35. Nxe6 {[%emt 0:03:11]} fxe6 {[%emt 0:00:18]} 36. Rh6 {[%emt 0:01:32]} Rg7 {[%emt 0:00:40]} 37. b4 {[%emt 0:02:16]} Kd7 {[%emt 0:01:50]} 38. f4 {[%emt 0:00:20]} Ke7 {[%emt 0:01:10]} 39. Kf3 {[%emt 0:00:59]} Rf7 {[%emt 0:00:28]} 40. b5 {[%emt 0:05:06]} Rg7 {[%emt 0:01:39]} 41. f5 {[%emt 0:31:19]} exf5 {[%emt 0:30:28]} 42. gxf5 {[%emt 0:00:07]} Ke8 {[%emt 0:01:25]} 43. f6 {[%emt 0:02:59]} Rg1 {[%emt 0:00:23]} 44. Rxh7 {[%emt 0:00:38]} Rf1+ {[%emt 0:00:14]} 45. Kg4 {[%emt 0:01:51]} Kf8 {[%emt 0:00:45]} 46. Rd7 {[%emt 0:01:04]} Ke8 {[%emt 0:00:17]} 47. Rxd5 {[%emt 0:00:45]} Kf7 {[%emt 0:00:07]} 48. Rd7+ {[%emt 0:00:36]} Ke6 {[%emt 0:00:13]} 49. Rxc7 {normal} 1-0

[Event "DVM U14w 2019"]
[Site "Neumuenster"]
[Date "2019.12.29"]
[Round "5"]
[White "Zoellner, Bente"]
[Black "Reiter, Hannah"]
[Result "1-0"]
[ECO "D60"]
[WhiteElo "1630"]
[BlackElo "1373"]
[Annotator "NA"]
[PlyCount "109"]
[EventDate "2019.12.27"]
[EventType "team-tourn"]
[EventRounds "7"]
[EventCountry "GER"]
[SourceTitle "playchess.com"]
[Source "ChessBase"]
[SourceQuality "1"]
[WhiteTeam "SC Papenburg"]
[BlackTeam "Karlsruher SF"]
[WhiteTeamCountry "GER"]
[BlackTeamCountry "GER"]
[TimeControl "40/5400+30:1800+30"]

1. d4 {[%emt 0:00:00]} d5 {[%emt 0:00:00]} 2. c4 {[%emt 0:00:00]} e6 {[%emt 0:00:00]} 3. Nf3 {[%emt 0:00:00]} Nf6 {[%emt 0:00:00]} 4. Nc3 {[%emt 0:00:06]} Nbd7 {[%emt 0:00:20]} 5. Bg5 {[%emt 0:00:35]} Be7 {[%emt 0:00:06]} 6. e3 {[%emt 0:00:15]} O-O {[%emt 0:00:52]} 7. cxd5 {[%emt 0:00:29]} exd5 {[%emt 0:00:18]} 8. Bd3 {[%emt 0:00:48]} c5 {[%emt 0:02:02]} 9. O-O {[%emt 0:03:53]} cxd4 {[%emt 0:01:27]} 10. Nxd4 {[%emt 0:00:56]} Ne5 {[%emt 0:02:43]} 11. Bf5 {[%emt 0:06:30]} Bxf5 {[%emt 0:02:25]} 12. Nxf5 {[%emt 0:01:14]} Bd6 {[%emt 0:09:00]} 13. Bxf6 {[%emt 0:03:16]} Qxf6 {[%emt 0:01:46]} 14. Nxd6 {[%emt 0:02:01]} Qxd6 {[%emt 0:00:56]} 15. Qxd5 {[%emt 0:01:49]} Qxd5 {[%emt 0:00:52]} 16. Nxd5 {[%emt 0:00:10]} Nc4 {[%emt 0:00:39]} 17. b3 {[%emt 0:03:00]} Ne5 {[%emt 0:01:34]} 18. Rac1 {[%emt 0:01:07]} Rfd8 {[%emt 0:01:38]} 19. e4 {[%emt 0:01:31]} a6 {[%emt 0:04:28]} 20. Rc7 {[%emt 0:04:08]} b5 {[%emt 0:06:37]} 21. Rfc1 {[%emt 0:02:43]} g6 {[%emt 0:07:17]} 22. Rc8 {[%emt 0:02:35]} Kf8 {[%emt 0:07:27]} 23. Rxa8 {[%emt 0:01:07]} Rxa8 {[%emt 0:00:24]} 24. Kf1 {[%emt 0:00:23]} Rd8 {[%emt 0:01:31]} 25. Ke2 {[%emt 0:00:48]} f5 {[%emt 0:00:38]} 26. f3 {[%emt 0:01:09]} Kf7 {[%emt 0:02:00]} 27. Rc7+ {[%emt 0:01:15]} Ke6 {[%emt 0:01:21]} 28. Rxh7 {[%emt 0:02:47]} Kd6 {[%emt 0:02:10]} 29. Rc7 {[%emt 0:05:04]} a5 {[%emt 0:04:00]} 30. Rc1 {[%emt 0:01:40]} a4 {[%emt 0:01:03]} 31. exf5 {[%emt 0:05:53]} gxf5 {[%emt 0:00:26]} 32. Ne3 {[%emt 0:01:13]} f4 {[%emt 0:00:27]} 33. Rd1+ {[%emt 0:00:40]} Ke7 {[%emt 0:00:33]} 34. Rxd8 {[%emt 0:00:31]} Kxd8 {[%emt 0:00:06]} 35. Nd5 {[%emt 0:00:33]} Kd7 {[%emt 0:01:05]} 36. Nxf4 {[%emt 0:00:28]} Kc6 {[%emt 0:00:25]} 37. Nd3 {[%emt 0:00:18]} Ng6 {[%emt 0:00:56]} 38. f4 {[%emt 0:00:43]} Ne7 {[%emt 0:01:32]} 39. Ke3 {[%emt 0:01:46]} Nd5+ 40. Kd4 {[%emt 0:00:36]} Nc7 {[%emt 0:02:25]} 41. f5 {[%emt 0:31:27]} Kb6 {[%emt 0:32:16]} 42. g4 {[%emt 0:02:02]} Ne8 {[%emt 0:01:34]} 43. g5 {[%emt 0:00:39]} Nc7 {[%emt 0:02:04]} 44. Nf4 {[%emt 0:02:05]} axb3 {[%emt 0:01:17]} 45. axb3 {[%emt 0:00:28]} b4 {[%emt 0:00:08]} 46. Nd5+ {[%emt 0:00:11]} Kc6 {[%emt 0:00:38]} 47. Nxc7 {[%emt 0:00:11]} Kxc7 {[%emt 0:00:06]} 48. g6 {[%emt 0:00:03]} Kb6 {[%emt 0:00:12]} 49. g7 {[%emt 0:00:09]} Kc6 {[%emt 0:00:13]} 50. g8=Q {[%emt 0:00:08]} Kd6 {[%emt 0:00:21]} 51. Qe6+ {[%emt 0:00:06]} Kc7 {[%emt 0:00:08]} 52. Kc5 {[%emt 0:00:09]} Kd8 {[%emt 0:00:21]} 53. Qf7 {[%emt 0:00:05]} Kc8 54. Kc6 Kb8 {[%emt 0:00:53]} 55. Qb7# {normal} 1-0

[Event "DVM U14w 2019"]
[Site "Neumuenster"]
[Date "2019.12.29"]
[Round "5"]
[White "Becker, Linda"]
[Black "Dietz, Kristin"]
[Result "1/2-1/2"]
[ECO "B22"]
[WhiteElo "1617"]
[BlackElo "1946"]
[Annotator "NA"]
[PlyCount "69"]
[EventDate "2019.12.27"]
[EventType "team-tourn"]
[EventRounds "7"]
[EventCountry "GER"]
[SourceTitle "playchess.com"]
[Source "ChessBase"]
[SourceQuality "1"]
[WhiteTeam "SG Porz"]
[BlackTeam "USV Halle"]
[WhiteTeamCountry "GER"]
[BlackTeamCountry "GER"]
[TimeControl "40/5400+30:1800+30"]

1. e4 {[%emt 0:00:00]} c5 {[%emt 0:00:00]} 2. c3 {[%emt 0:00:00]} d5 {[%emt 0:00:03]} 3. exd5 {[%emt 0:00:00]} Qxd5 {[%emt 0:00:08]} 4. d4 {[%emt 0:00:00]} Nf6 {[%emt 0:00:33]} 5. Nf3 {[%emt 0:00:29] unterminated} Bg4 {[%emt 0:00:43]} 6. Be2 {[%emt 0:00:31]} e6 {[%emt 0:00:19]} 7. Be3 {[%emt 0:00:17]} cxd4 {[%emt 0:00:50]} 8. cxd4 {[%emt 0:00:10]} Nc6 {[%emt 0:00:49] unterminated} 9. Nc3 {[%emt 0:00:37] unterminated} Qd6 {[%emt 0:01:36]} 10. O-O {[%emt 0:00:52]} Be7 {[%emt 0:00:16] unterminated} 11. Qd2 {[%emt 0:02:48] unterminated} O-O {[%emt 0:01:32] unterminated} 12. Rac1 {[%emt 0:01:41] unterminated} Rfd8 $11 {[%emt 0:07:26]} 13. Rfd1 {[%emt 0:02:17]} Rac8 {[%emt 0:14:26]} 14. a3 {[%emt 0:14:44]} Nd5 {[%emt 0:14:44]} 15. Ne4 {[%emt 0:03:19]} Qb8 {[%emt 0:06:21]} 16. Bg5 {[%emt 0:02:50]} h6 {[%emt 0:09:49]} 17. Bxe7 {[%emt 0:00:22]} Ndxe7 {[%emt 0:01:23]} 18. Rc4 {[%emt 0:17:40]} e5 {[%emt 0:07:36]} 19. Qc1 {[%emt 0:08:37]} Bxf3 {[%emt 0:02:13]} 20. Bxf3 {[%emt 0:01:25]} Nxd4 {[%emt 0:00:14]} 21. Bh5 {[%emt 0:06:09]} Nd5 {[%emt 0:07:20]} 22. Bxf7+ {[%emt 0:06:43]} Kxf7 {[%emt 0:00:22]} 23. Rxc8 {[%emt 0:00:42]} Rxc8 {[%emt 0:02:19]} 24. Qxc8 {[%emt 0:00:30]} Qxc8 {[%emt 0:00:54]} 25. Nd6+ {[%emt 0:00:07]} Ke6 {[%emt 0:00:49]} 26. Nxc8 {[%emt 0:00:12]} a6 {[%emt 0:01:37]} 27. Kf1 {[%emt 0:03:53]} Kd7 {[%emt 0:00:41]} 28. Na7 {[%emt 0:00:11]} g5 {[%emt 0:05:20]} 29. Ke1 {[%emt 0:02:06]} Nb6 {[%emt 0:02:55]} 30. Rc1 {[%emt 0:00:25]} Nf5 {[%emt 0:03:37]} 31. Ke2 {[%emt 0:00:57]} Nd4+ {[%emt 0:01:25]} 32. Ke3 {[%emt 0:00:50]} Nb3 {[%emt 0:00:33]} 33. Rc2 {[%emt 0:01:06]} Nd4 {[%emt 0:00:13]} 34. Rc5 {[%emt 0:01:04]} Nb3 {[%emt 0:00:36]} 35. Rc2 {[%emt 0:02:17] normal} 1/2-1/2